[Event "FIDE World Cadets GU10 2022"]
[Site "Batumi"]
[Date "2022.09.17"]
[Round "2.35"]
[White "Meshkova, Aleksandra"]
[Black "Zhang, Ellery"]
[Result "0-1"]
[ECO "D43"]
[WhiteElo "1116"]
[BlackElo "1348"]
[Annotator "NA COMBH"]
[PlyCount "138"]
[EventDate "2022.09.16"]
[EventType "swiss"]
[EventCountry "GEO"]
[SourceTitle "playchess.com"]
[Source "ChessBase"]
[SourceQuality "1"]
[TimeControl "5400+30"]

1. d4 {[%emt 0:01:00]} d5 {[%emt 0:01:00]} 2. c4 {[%emt 0:00:30]} c6 {[%emt 0:00:30]} 3. Nf3 {[%emt 0:00:30]} Nf6 {[%emt 0:00:30]} 4. Nc3 {[%emt 0:00:30]} e6 {[%emt 0:00:00]} 5. Bg5 {[%emt 0:05:30]} h6 {[%emt 0:00:00]} 6. Bxf6 {[%emt 0:13:30]} Qxf6 {[%emt 0:00:30]} 7. e3 {[%emt 0:00:30]} Nd7 {[%emt 0:04:30]} 8. Be2 {[%emt 0:03:30]} Bd6 {[%emt 0:00:30]} 9. O-O {[%emt 0:04:30]} O-O {[%emt 0:01:30]} 10. Rc1 {[%emt 0:05:30]} b6 {[%emt 0:02:30]} 11. Qa4 {[%emt 0:08:30]} Bb7 {[%emt 0:02:30]} 12. cxd5 {[%emt 0:03:30]} b5 {[%emt 0:03:30]} 13. Qb3 {[%emt 0:01:30]} exd5 {[%emt 0:01:30]} 14. a4 {[%emt 0:03:30]} a6 {[%emt 0:05:30]} 15. axb5 {[%emt 0:04:30]} axb5 {[%emt 0:02:30]} 16. Ra1 {[%emt 0:02:30]} Rfe8 {[%emt 0:05:30]} 17. Bd3 {[%emt 0:02:30]} b4 {[%emt 0:10:30]} 18. Ne2 {[%emt 0:03:30]} Qe7 {[%emt 0:03:30]} 19. Ng3 {[%emt 0:02:30]} Bxg3 {[%emt 0:03:30]} 20. hxg3 {[%emt 0:00:30]} c5 {[%emt 0:02:30]} 21. Bb5 {[%emt 0:03:30]} c4 {[%emt 0:03:30]} 22. Qc2 {[%emt 0:00:30]} Rec8 {[%emt 0:02:30]} 23. Qf5 {[%emt 0:02:30]} Rc7 {[%emt 0:06:30]} 24. Rxa8+ {[%emt 0:01:30]} Bxa8 {[%emt 0:00:00]} 25. Ra1 {[%emt 0:02:30]} Nb6 {[%emt 0:04:00]} 26. Ne5 {[%emt 0:04:30]} c3 {[%emt 0:04:30]} 27. bxc3 {[%emt 0:00:55]} bxc3 {[%emt 0:00:30]} 28. Qc2 {[%emt 0:00:27]} Rc8 {[%emt 0:05:30]} 29. Ra6 {[%emt 0:03:07]} Qc7 {[%emt 0:03:30]} 30. Nd3 {[%emt 0:01:25]} Bc6 {[%emt 0:04:34]} 31. Bxc6 {[%emt 0:01:21]} Qxc6 {[%emt 0:00:08]} 32. Nb4 {[%emt 0:00:22]} Qb5 {[%emt 0:01:57]} 33. Qf5 {[%emt 0:06:38]} c2 {[%emt 0:03:31]} 34. Nxc2 {[%emt 0:01:26]} Qxa6 {[%emt 0:01:10]} 35. Nb4 {[%emt 0:00:19]} Qb5 {[%emt 0:00:40]} 36. Nd3 {[%emt 0:00:45]} g6 {[%emt 0:00:30]} 37. Qf6 {[%emt 0:00:00]} Qxd3 {[%emt 0:00:47]} 38. Qxb6 {[%emt 0:00:10]} Rc1+ {[%emt 0:00:42]} 39. Kh2 {[%emt 0:00:06]} Qf5 {[%emt 0:00:45]} 40. Qb8+ {[%emt 0:00:30]} Kg7 {[%emt 0:00:30]} 41. Qe5+ {[%emt 0:00:07]} Qxe5 {[%emt 0:00:00]} 42. dxe5 {[%emt 0:00:30]} g5 {[%emt 0:00:15]} 43. g4 {[%emt 0:00:00]} Rf1 {[%emt 0:00:11]} 44. Kg3 {[%emt 0:00:00]} Rd1 {[%emt 0:00:36]} 45. Kf3 {[%emt 0:00:31]} d4 {[%emt 0:00:18]} 46. Ke2 {[%emt 0:00:17]} Rc1 {[%emt 0:00:35]} 47. exd4 {[%emt 0:00:07]} Rc2+ {[%emt 0:00:46]} 48. Ke3 {[%emt 0:00:30]} f6 {[%emt 0:00:30]} 49. e6 {[%emt 0:00:30]} Kf8 {[%emt 0:00:00]} 50. d5 {[%emt 0:00:00]} Ke7 {[%emt 0:00:00]} 51. g3 {[%emt 0:00:30]} Kd6 {[%emt 0:00:20]} 52. Kd3 {[%emt 0:00:30]} Rc5 {[%emt 0:00:36]} 53. Ke4 {[%emt 0:00:34]} Rxd5 {[%emt 0:00:19]} 54. e7 {[%emt 0:00:30]} Re5+ {[%emt 0:00:30]} 55. Kd4 {[%emt 0:00:00]} Rxe7 {[%emt 0:00:06]} 56. f4 {[%emt 0:00:15]} Re1 {[%emt 0:00:08]} 57. f5 {[%emt 0:00:16]} Rg1 {[%emt 0:00:21]} 58. Ke3 {[%emt 0:00:00]} Rxg3+ {[%emt 0:00:32]} 59. Kf2 {[%emt 0:00:27]} Rxg4 {[%emt 0:00:30]} 60. Kf3 {[%emt 0:00:00]} h5 {[%emt 0:00:00]} 61. Kf2 {[%emt 0:00:23]} h4 {[%emt 0:00:29]} 62. Kf3 {[%emt 0:00:00]} Rg3+ {[%emt 0:00:00]} 63. Kf2 {[%emt 0:00:17]} Ke5 {[%emt 0:00:05]} 64. Kf1 {[%emt 0:00:00]} Kf4 {[%emt 0:00:22]} 65. Kf2 {[%emt 0:00:30]} h3 {[%emt 0:01:13]} 66. Kf1 {[%emt 0:00:21]} h2 {[%emt 0:00:30]} 67. Kf2 {[%emt 0:00:30]} h1=Q {[%emt 0:00:30]} 68. Ke2 {[%emt 0:00:00]} Qh2+ {[%emt 0:00:09]} 69. Kf1 {[%emt 0:00:00]} Rg1# {[%emt 0:00:05]} 0-1